[Event "45th FIDE Olympiad 2024"]
[Site "Budapest"]
[Date "2024.09.15"]
[Round "5.10"]
[White "Wei, Yi"]
[Black "Anton Guijarro, David"]
[Result "1-0"]
[ECO "B36"]
[WhiteElo "2762"]
[BlackElo "2665"]
[Annotator "TA"]
[PlyCount "137"]
[EventDate "2024.09.05"]
[EventType "team-tourn"]
[EventCountry "HUN"]
[SourceTitle "playchess.com"]
[Source "ChessBase"]
[SourceQuality "1"]
[WhiteTeam "China"]
[BlackTeam "Spain"]
[WhiteTeamCountry "CHN"]
[BlackTeamCountry "ESP"]
[TimeControl "40/5400+30:1800+30"]

{[%evp 68,137,84,86,191,193,197,183,195,195,202,202,201,198,237,222,249,249,355,335,332,340,318,336,333,326,437,466,457,467,467,477,477,470,384,421,754,759,737,387,533,520,516,537,515,533,375,316,1230,887,2060,1773,4237,2795,29957,29967,29970,29971,29974,29976,29985,29986,29986,29987,29987,29988,29988,29989,29989,29988,29988,29989]} 1. e4 {[%emt 0:00:05]} c5 {[%emt 0:00:15]} 2. Nf3 {[%emt 0:00:41]} Nc6 {[%emt 0:00:07]} 3. d4 {[%emt 0:01:17]} cxd4 {[%emt 0:00:07]} 4. Nxd4 {[%emt 0:00:03]} g6 {[%emt 0:00:15]} 5. c4 {[%emt 0:00:50]} Nf6 {[%emt 0:00:27]} 6. Nc3 {[%emt 0:00:13]} d6 {[%emt 0:00:09]} 7. Be2 {[%emt 0:00:51]} Nxd4 {[%emt 0:00:22]} 8. Qxd4 {[%emt 0:00:03]} Bg7 {[%emt 0:00:08]} 9. Be3 {[%emt 0:04:53]} O-O {[%emt 0:00:18]} 10. Qd2 {[%emt 0:04:49]} a5 {[%emt 0:00:45]} 11. f3 {[%emt 0:08:12]} a4 {[%emt 0:01:10]} 12. Rc1 {[%emt 0:07:27]} Be6 {[%emt 0:06:32]} 13. Nd5 {[%emt 0:20:51]} Nxd5 {[%emt 0:10:33]} 14. cxd5 {[%emt 0:00:57]} Bd7 {[%emt 0:00:06]} 15. a3 {[%emt 0:04:09]} e6 {[%emt 0:07:16]} 16. dxe6 {[%emt 0:00:19]} Bxe6 {[%emt 0:00:48]} 17. Bd4 {[%emt 0:00:27]} Bxd4 {[%emt 0:15:04]} 18. Qxd4 {[%emt 0:00:06]} Qg5 {[%emt 0:08:59]} 19. Kf2 {[%emt 0:07:49]} Rfc8 {[%emt 0:03:15]} 20. h4 {[%emt 0:02:07]} Qh6 {[%emt 0:12:19]} 21. Rc3 {[%emt 0:14:12]} Rxc3 {[%emt 0:04:41]} 22. bxc3 {[%emt 0:00:04]} Rc8 {[%emt 0:01:54]} 23. c4 {[%emt 0:05:04]} Qf4 {[%emt 0:03:24]} 24. g3 {[%emt 0:02:24]} Qe5 {[%emt 0:00:10]} 25. Rd1 {[%emt 0:00:09]} h5 {[%emt 0:02:35]} 26. f4 {[%emt 0:01:33]} Qc5 {[%emt 0:01:12]} 27. Qxc5 {[%emt 0:00:07]} Rxc5 {[%emt 0:00:10]} 28. Rd4 {[%emt 0:00:45]} Kf8 {[%emt 0:02:19]} 29. Ke3 {[%emt 0:00:08]} Ke7 {[%emt 0:00:29]} 30. Kd3 {[%emt 0:01:56]} Bd7 {[%emt 0:05:00]} 31. Kc3 {[%emt 0:01:55]} b5 {[%emt 0:04:35]} 32. Rd5 {[%emt 0:05:42]} Rc8 {[%emt 0:05:00]} 33. e5 {[%emt 0:00:25]} dxe5 {[%emt 0:02:31]} 34. Rxe5+ {[%emt 0:00:05]} Kd6 {[%emt 0:00:11] [#]} 35. Rd5+ $1 {[%emt 0:02:18]} Ke7 {[%emt 0:00:27]} (35... Ke6 $16 {keeps fighting.}) 36. c5 $18 {[%emt 0:00:36]} Be6 {[%emt 0:00:42]} 37. Re5 {[%emt 0:00:06]} f6 {[%emt 0:00:25]} 38. Re3 {[%emt 0:00:04]} Rxc5+ {[%emt 0:00:37]} 39. Kb4 {[%emt 0:00:04]} Rc1 {[%emt 0:02:43]} 40. Bxb5 {[%emt 0:00:05]} Rb1+ {[%emt 0:01:50]} 41. Kxa4 {[%emt 0:31:14]} Kd6 {[%emt 0:30:15]} 42. Ka5 {[%emt 0:04:01]} Bf5 {[%emt 0:00:00]} (42... Rc1 $142 43. a4 Bh3) 43. a4 $18 {[%emt 0:00:00]} Kc5 {[%emt 0:00:00]} 44. Rc3+ {[%emt 0:00:00]} Kd4 {[%emt 0:00:00]} 45. Rc4+ {[%emt 0:00:00]} Kd5 {[%emt 0:00:00]} 46. Rc6 {[%emt 0:00:00]} Rg1 {[%emt 0:00:00]} 47. Kb6 {[%emt 0:00:00]} (47. Rxf6 Rxg3 48. Kb6 Rb3 $18) 47... Rxg3 {[%emt 0:00:00]} 48. a5 {[%emt 0:00:00]} (48. Rxf6 Ke4 49. a5 Kxf4 $18) 48... Rb3 {[%emt 0:00:00]} 49. Rc5+ {[%emt 0:00:00]} (49. Rxf6 $2 Bd3 50. Kc7 Rxb5 $19 (50... Bxb5 51. Rxg6 Ke4 52. Rg5 $11)) (49. a6 $2 Rxb5+ 50. Kc7 Rc5 51. Rxc5+ Kxc5 $19) 49... Kd6 {[%emt 0:00:00]} 50. a6 {[%emt 0:00:49]} Be4 {[%emt 0:00:00]} 51. a7 {[%emt 0:00:24]} Rb2 {[%emt 0:03:52]} (51... Ke6 $142 52. Kc7 Ra3) 52. Rc8 $18 {[%emt 0:01:02]} Bh1 {[%emt 0:00:36]} 53. Rc3 {[%emt 0:02:13]} (53. a8=B Bxa8 54. Rxa8 Ke6 $14) 53... Ba8 {[%emt 0:01:14]} 54. Rg3 {[%emt 0:01:10]} Ke6 {[%emt 0:00:52]} 55. Rxg6 {[%emt 0:00:03]} Kf5 {[%emt 0:00:06]} 56. Rh6 {[%emt 0:00:02]} Kxf4 {[%emt 0:00:45]} 57. Rxh5 {[%emt 0:00:05]} f5 $2 {[%emt 0:00:41]} (57... Kg4 58. Rh8 Bf3) 58. Rh8 {[%emt 0:00:05]} Bh1 {[%emt 0:00:44]} 59. Rg8 {[%emt 0:00:12]} (59. a8=Q Bxa8 60. Rxa8 Kg4 $16) 59... Ke5 {[%emt 0:00:30]} 60. h5 {[%emt 0:00:14]} (60. a8=B Bxa8 61. Rxa8 Rb1 $18) 60... f4 {[%emt 0:00:23]} 61. h6 {[%emt 0:02:10]} (61. a8=B Bxa8 62. Rxa8 Kf6 $16) 61... Rh2 {[%emt 0:00:11]} 62. Rg6 {[%emt 0:00:19]} (62. a8=B Rxh6+ 63. Kc5 Bxa8 $11) 62... Ba8 {[%emt 0:00:40]} 63. Bc6 {[%emt 0:00:30]} f3 {[%emt 0:00:40]} 64. Bxa8 {[%emt 0:00:03]} f2 {[%emt 0:00:07]} 65. Bg2 {[%emt 0:00:07]} Rxg2 {[%emt 0:00:06]} 66. Rxg2 {[%emt 0:00:04]} (66. a8=B {leads to mate.} Rxg6+ (66... f1=R 67. Bxg2 Rf8 68. h7 $18) 67. Bc6 Rxh6 (67... f1=B $2 68. Kc7 $19) 68. Kc5 f1=Q (68... f1=R 69. Bd7 Rc1+ 70. Kb5 Kd4 71. Be8 Rb1+ 72. Ka5 Kc5 73. Bd7 Ra1+ 74. Ba4 Rh7 75. Ka6 Rxa4#) (68... Rxc6+ 69. Kxc6 f1=Q 70. Kc5 Qa6 71. Kb4 Kd4 72. Kb3 Qa1 73. Kc2 Qa2+ 74. Kd1 Kd3 75. Ke1 Qe2#) 69. Bd7 Qf2+ 70. Kb4 Rb6+ 71. Bb5 Qb2+ 72. Kc4 Ke4 73. Be8 Qd4#) 66... f1=Q {[%emt 0:00:06]} 67. a8=Q {[%emt 0:00:05]} ({Worse is} 67. a8=B Qb1+ 68. Ka7 Qh7+ 69. Rg7 Qxh6 $15) 67... Qb1+ {[%emt 0:01:37]} 68. Ka7 {[%emt 0:00:04]} Qa1+ {[%emt 0:00:37]} 69. Kb8 {[%emt 0:00:05]} 1-0

[Event "45th FIDE Olympiad 2024"]
[Site "Budapest"]
[Date "2024.09.15"]
[Round "5.10"]
[White "Meier, Peter"]
[Black "Fabri, Henrik"]
[Result "1-0"]
[ECO "E19"]
[WhiteElo "2062"]
[BlackElo "1936"]
[PlyCount "123"]
[EventDate "2024.09.05"]
[EventType "team-tourn"]
[EventCountry "HUN"]
[WhiteTeam "Seychelles"]
[BlackTeam "Isle of Man"]
[WhiteTeamCountry "SEY"]
[BlackTeamCountry "IOM"]
[TimeControl "40/5400+30:1800+30"]

1. d4 Nf6 2. c4 e6 3. Nf3 b6 4. g3 Bb7 5. Bg2 Be7 6. O-O O-O 7. Nc3 Ne4 8. Qc2 Nxc3 9. Qxc3 f5 10. Rd1 Bf6 11. Bf4 d6 12. Qd2 Qe7 13. Rac1 Nd7 14. b4 Rfd8 15. c5 dxc5 16. bxc5 Nxc5 17. Qb4 Na6 18. Qc4 Rac8 19. e4 fxe4 20. Ne5 Nb8 21. Qa4 a6 22. Ng4 b5 23. Nxf6+ gxf6 24. Qc2 f5 25. h4 Rd7 26. Bg5 Qg7 27. a4 Bd5 28. axb5 axb5 29. Bf1 c6 30. Bxb5 Ra7 31. Bc4 Nd7 32. Qd2 Nb6 33. Bf1 Rca8 34. Bh6 Qg6 35. Bf4 Nd7 36. Rb1 Qe8 37. Rb2 Ra2 38. Rdb1 e5 39. dxe5 Nxe5 40. Bxe5 Qxe5 41. Qg5+ Kh8 42. Rb7 Rc8 43. Re7 Qd4 44. Qxf5 Bg8 45. Rbb7 Qxf2+ 46. Qxf2 Rxf2 47. Kxf2 Rf8+ 48. Kg1 Rf3 49. Rb8 Rxg3+ 50. Kh2 Rc3 51. Ree8 h6 52. Rxg8+ Kh7 53. h5 e3 54. Bh3 Rc2+ 55. Kg3 Rc5 56. Bg4 Re5 57. Be2 Rd5 58. Kf4 c5 59. Bf3 Rd4+ 60. Kxe3 Rd3+ 61. Kxd3 c4+ 62. Kd4 1-0

[Event "45th FIDE Olympiad 2024"]
[Site "Budapest"]
[Date "2024.09.15"]
[Round "5.11"]
[White "Vallejo Pons, Francisco"]
[Black "Yu, Yangyi"]
[Result "1/2-1/2"]
[ECO "C47"]
[WhiteElo "2657"]
[BlackElo "2703"]
[Annotator "TA"]
[PlyCount "61"]
[EventDate "2024.09.05"]
[EventType "team-tourn"]
[EventCountry "HUN"]
[SourceTitle "playchess.com"]
[Source "ChessBase"]
[SourceQuality "1"]
[WhiteTeam "Spain"]
[BlackTeam "China"]
[WhiteTeamCountry "ESP"]
[BlackTeamCountry "CHN"]
[TimeControl "40/5400+30:1800+30"]

{[%evp 17,61,0,0,0,12,0,0,0,7,0,0,0,0,0,0,0,0,0,1,1,18,21,65,62,82,11,14,0,0,0,0,0,0,0,0,0,0,0,0,0,5,0,0,0,0,0]} 1. e4 {[%emt 0:00:04]} e5 {[%emt 0:00:12]} 2. Nf3 {[%emt 0:00:12]} Nc6 {[%emt 0:00:28]} 3. Nc3 {[%emt 0:00:26]} Nf6 {[%emt 0:00:11]} 4. d4 {[%emt 0:00:06]} exd4 {[%emt 0:00:37]} 5. Nxd4 {[%emt 0:00:04]} Bb4 {[%emt 0:00:17]} 6. Nxc6 {[%emt 0:00:09]} bxc6 {[%emt 0:00:08]} 7. Bd3 {[%emt 0:00:05]} d5 {[%emt 0:00:17]} 8. exd5 {[%emt 0:00:12]} O-O {[%emt 0:01:33]} 9. O-O {[%emt 0:00:48]} cxd5 {[%emt 0:00:07]} 10. h3 {[%emt 0:00:27] Dodges Bg4} Rb8 {[%emt 0:07:18]} 11. a3 {[%emt 0:09:23]} Be7 {[%emt 0:04:27]} 12. b3 {[%emt 0:01:09]} c5 {[%emt 0:03:49]} 13. Re1 {[%emt 0:06:21]} Be6 {[%emt 0:02:37]} 14. Bf4 {[%emt 0:09:50]} Bd6 {[%emt 0:05:58]} 15. Qd2 {[%emt 0:06:51]} Re8 {[%emt 0:09:10][%cal Bf8e8,Be8e7,Be7b7,Bb7b4,Bb4f4][%mdl 32]} 16. Nb5 {[%emt 0:13:19]} Bxf4 {[%emt 0:03:20]} 17. Qxf4 {[%emt 0:00:06]} Re7 {[%emt 0:03:21]} 18. b4 {[%emt 0:08:01]} a6 {[%emt 0:13:20]} ({But not} 18... c4 19. Nd4 Rb6 (19... cxd3 $2 {is the wrong capture.} 20. Nc6 $18) 20. Bf1 $14) 19. Nc3 {[%emt 0:02:23]} cxb4 {[%emt 0:03:20]} (19... Qc7 {simplifies} 20. Qxc7 Rxc7 21. bxc5 Rxc5 22. Ne2 Ra5) 20. axb4 {[%emt 0:00:33]} Reb7 {[%emt 0:01:19] [#]} 21. Rxa6 {[%emt 0:09:05] White is much more active.} (21. Reb1 $1 $16) 21... Rxb4 $11 {[%emt 0:00:14] The position is equal.} 22. Qd6 {[%emt 0:01:39]} Qxd6 {[%emt 0:01:28]} 23. Rxd6 {[%emt 0:00:03]} g6 {[%emt 0:01:31]} 24. Ra6 {[%emt 0:02:02]} Nh5 {[%emt 0:03:37]} 25. Ne2 {[%emt 0:00:57]} Nf4 {[%emt 0:00:30]} 26. Nxf4 {[%emt 0:00:44]} Rxf4 {[%emt 0:00:07]} 27. g3 {[%emt 0:01:35]} Rfb4 {[%emt 0:00:10]} 28. Kg2 {[%emt 0:00:26]} Rb1 {[%emt 0:03:47]} 29. Ra1 {[%emt 0:02:02]} Rxe1 {[%emt 0:00:18]} 30. Rxe1 {[%emt 0:00:05]} Kg7 {[%emt 0:00:09]} 31. h4 {[%emt 0:01:30] Weighted Error Value: White=0.09 (flawless) /Black=0.05 (flawless) .  Mistake:       	White=1     	---        Inaccurate:     	---       	Black=1      OK:         	White=7     	Black=13     Best:        	---       	Black=1} 1/2-1/2

[Event "45th FIDE Olympiad 2024"]
[Site "Budapest"]
[Date "2024.09.15"]
[Round "5.11"]
[White "Ormsby, Alan"]
[Black "Bonne, Robin"]
[Result "1-0"]
[ECO "B94"]
[WhiteElo "1914"]
[BlackElo "1707"]
[PlyCount "71"]
[EventDate "2024.09.05"]
[EventType "team-tourn"]
[EventCountry "HUN"]
[WhiteTeam "Isle of Man"]
[BlackTeam "Seychelles"]
[WhiteTeamCountry "IOM"]
[BlackTeamCountry "SEY"]
[TimeControl "40/5400+30:1800+30"]

1. e4 c5 2. Nf3 d6 3. d4 cxd4 4. Nxd4 a6 5. Nc3 e5 6. Nb3 Nf6 7. Bg5 Nbd7 8. Bd3 Be7 9. O-O h6 10. Be3 Nc5 11. Nxc5 dxc5 12. a4 Be6 13. Qe2 O-O 14. f3 Qc7 15. Bc4 Bxc4 16. Qxc4 Rfd8 17. Rfd1 Rac8 18. g4 g5 19. b3 a5 20. Kg2 b6 21. h4 Ne8 22. Nd5 Nd6 23. Qe2 Qb7 24. c4 f6 25. Rh1 Bf8 26. Nxf6+ Kf7 27. hxg5 Bg7 28. Nd5 hxg5 29. Bxg5 Rh8 30. Rxh8 Rxh8 31. Rh1 Kg6 32. Rxh8 Bxh8 33. Qd2 Bg7 34. Ne7+ Kf7 35. Qxd6 Bf8 36. Qg6# 1-0

[Event "45th FIDE Olympiad 2024"]
[Site "Budapest"]
[Date "2024.09.15"]
[Round "5.12"]
[White "Bu, Xiangzhi"]
[Black "Santos Latasa, Jaime"]
[Result "1/2-1/2"]
[ECO "D38"]
[WhiteElo "2693"]
[BlackElo "2624"]
[Annotator "TA"]
[PlyCount "62"]
[EventDate "2024.09.05"]
[EventType "team-tourn"]
[EventCountry "HUN"]
[SourceTitle "playchess.com"]
[Source "ChessBase"]
[SourceQuality "1"]
[WhiteTeam "China"]
[BlackTeam "Spain"]
[WhiteTeamCountry "CHN"]
[BlackTeamCountry "ESP"]
[TimeControl "40/5400+30:1800+30"]

{[%evp 11,62,16,25,3,21,14,10,4,13,8,0,0,11,0,0,-33,-13,-10,-10,-8,-10,-7,6,0,0,0,0,0,0,0,0,0,0,0,0,0,0,0,0,0,0,0,0,0,0,0,5,0,0,0,0,0,3]} 1. d4 {[%emt 0:00:03]} Nf6 {[%emt 0:00:10]} 2. c4 {[%emt 0:00:13]} e6 {[%emt 0:00:05]} 3. Nc3 {[%emt 0:00:22]} Bb4 {[%emt 0:00:30]} 4. Nf3 {[%emt 0:00:42]} d5 {[%emt 0:00:37]} 5. Qa4+ {[%emt 0:01:08]} Nc6 {[%emt 0:01:36]} 6. e3 {[%emt 0:00:35]} O-O {[%emt 0:00:19]} 7. Qc2 {[%emt 0:00:43]} Re8 {[%emt 0:00:41]} 8. Bd2 {[%emt 0:00:35]} a6 {[%emt 0:01:36]} 9. a3 {[%emt 0:02:44]} Bd6 {[%emt 0:01:09]} 10. h3 {[%emt 0:10:09]} Bd7 {[%emt 0:02:15]} 11. Bd3 {[%emt 0:11:16]} dxc4 {[%emt 0:04:31]} 12. Bxc4 {[%emt 0:00:04]} h6 {[%emt 0:01:00]} 13. Ne4 {[%emt 0:34:49]} e5 {[%emt 0:05:09]} 14. dxe5 {[%emt 0:01:58] [#] aiming for Nxf6+. The position is equal.} (14. Nxd6 {keeps more tension.} cxd6 15. dxe5 Nxe5 16. Nxe5 Rxe5 17. Bc3) 14... Nxe5 {[%emt 0:04:18]} (14... Nxe4 {seems wilder.} 15. exd6 cxd6 16. Bd5 Nf6) 15. Nxd6 {[%emt 0:01:27]} cxd6 {[%emt 0:02:42]} 16. Nxe5 {[%emt 0:10:51]} dxe5 {[%emt 0:00:06]} 17. Qb3 {[%emt 0:00:51]} Be6 {[%emt 0:00:21]} 18. Bxe6 {[%emt 0:01:51]} Rxe6 {[%emt 0:01:09]} 19. Rd1 {[%emt 0:00:16]} Rb6 {[%emt 0:06:46]} 20. Qc2 {[%emt 0:01:15]} Qd5 {[%emt 0:01:27] Dodges Ba5} 21. O-O {[%emt 0:00:17]} Qe6 {[%emt 0:00:25]} 22. Ba5 {[%emt 0:03:57]} Rc6 {[%emt 0:01:14]} 23. Qd3 {[%emt 0:00:19]} Rc5 {[%emt 0:01:30]} 24. Bb4 {[%emt 0:04:00]} Rd5 {[%emt 0:00:48]} 25. Qb3 {[%emt 0:00:42]} Rxd1 {[%emt 0:04:58]} 26. Qxd1 {[%emt 0:00:03]} Nd5 {[%emt 0:01:00]} 27. Qb3 {[%emt 0:00:41]} Rd8 {[%emt 0:04:08]} 28. Rc1 {[%emt 0:01:44]} Nf4 {[%emt 0:06:01]} 29. Qxe6 {[%emt 0:00:24]} Nxe6 {[%emt 0:00:04]} 30. Kf1 {[%emt 0:00:17]} f6 {[%emt 0:00:21]} 31. Ke2 {[%emt 0:00:28]} Kf7 {[%emt 0:00:09] An even fight not without its subleties.   Weighted Error Value: White=0.03 (flawless) /Black=0.02 (flawless) .  Inaccurate:     	White=1     	---        OK:         	White=13    	Black=10} 1/2-1/2

[Event "45th FIDE Olympiad 2024"]
[Site "Budapest"]
[Date "2024.09.15"]
[Round "5.12"]
[White "Pillay, Ragul"]
[Black "Gumireddy, Sanjay"]
[Result "1-0"]
[ECO "A58"]
[WhiteElo "1633"]
[BlackElo "1907"]
[PlyCount "61"]
[EventDate "2024.09.05"]
[EventType "team-tourn"]
[EventCountry "HUN"]
[WhiteTeam "Seychelles"]
[BlackTeam "Isle of Man"]
[WhiteTeamCountry "SEY"]
[BlackTeamCountry "IOM"]
[TimeControl "40/5400+30:1800+30"]

1. d4 Nf6 2. c4 c5 3. d5 b5 4. cxb5 a6 5. bxa6 g6 6. e3 Bxa6 7. Bxa6 Qa5+ 8. Nc3 Qxa6 9. Nge2 d6 10. O-O Bg7 11. Qb3 O-O 12. Qb5 Qa7 13. Bd2 Nbd7 14. Rfb1 Ne5 15. Qb3 Rfb8 16. Nb5 Qb7 17. Nec3 c4 18. Qc2 Nfd7 19. b3 cxb3 20. Rxb3 Qc8 21. Nd4 Nb6 22. f4 Nec4 23. Nc6 Rb7 24. Bc1 e6 25. Rab1 Bxc3 26. Qxc3 exd5 27. Rxb6 Nxb6 28. Rxb6 Qc7 29. Bb2 f6 30. Rxb7 Qxb7 31. Qxf6 1-0

[Event "45th FIDE Olympiad 2024"]
[Site "Budapest"]
[Date "2024.09.15"]
[Round "5.13"]
[White "Le, Quang Liem"]
[Black "Duda, Jan-Krzysztof"]
[Result "1/2-1/2"]
[ECO "D50"]
[WhiteElo "2741"]
[BlackElo "2732"]
[Annotator "TA"]
[PlyCount "95"]
[EventDate "2024.09.05"]
[EventType "team-tourn"]
[EventCountry "HUN"]
[SourceTitle "playchess.com"]
[Source "ChessBase"]
[SourceQuality "1"]
[WhiteTeam "Vietnam"]
[BlackTeam "Poland"]
[WhiteTeamCountry "VIE"]
[BlackTeamCountry "POL"]
[TimeControl "40/5400+30:1800+30"]

{[%evp 14,95,23,21,20,29,20,28,27,12,9,8,4,12,39,35,46,33,34,17,34,26,27,14,44,37,41,42,45,14,25,16,45,43,39,42,44,38,61,54,54,46,54,39,39,39,40,39,39,39,39,39,39,39,39,39,39,22,22,22,25,15,15,15,23,16,16,14,161,13,14,13,111,115,147,0,0,0,0,0,0,0,0,0]} 1. d4 {[%emt 0:00:04]} Nf6 {[%emt 0:00:06]} 2. c4 {[%emt 0:00:09]} e6 {[%emt 0:00:05]} 3. Nf3 {[%emt 0:00:09]} d5 {[%emt 0:00:06]} 4. Nc3 {[%emt 0:00:09]} c5 {[%emt 0:00:07]} 5. cxd5 {[%emt 0:00:07]} cxd4 {[%emt 0:00:07]} 6. Qxd4 {[%emt 0:00:12]} exd5 {[%emt 0:00:05]} 7. Bg5 {[%emt 0:00:25]} Be7 {[%emt 0:00:08]} 8. e3 {[%emt 0:00:09]} O-O {[%emt 0:00:10]} 9. Be2 {[%emt 0:00:17]} Nc6 {[%emt 0:00:27]} 10. Qd3 {[%emt 0:00:47]} h6 {[%emt 0:00:29] White has an edge.} 11. Bh4 {[%emt 0:00:19]} Qb6 {[%emt 0:03:31]} 12. O-O {[%emt 0:00:12]} Rd8 {[%emt 0:16:33]} 13. Rfd1 {[%emt 0:01:44]} Qxb2 {[%emt 0:07:12]} 14. Rab1 {[%emt 0:01:28]} Qa3 {[%emt 0:00:06]} 15. Bxf6 {[%emt 0:01:19]} Bxf6 {[%emt 0:00:06]} 16. Nxd5 {[%emt 0:00:10]} Qxd3 {[%emt 0:00:24]} (16... Qxa2 {keeps more tension.} 17. Nxf6+ gxf6 18. Nd4 Nxd4 19. exd4 Qd5) 17. Nxf6+ {[%emt 0:00:09]} gxf6 {[%emt 0:00:04]} 18. Rxd3 {[%emt 0:00:24]} Bf5 {[%emt 0:03:18]} 19. Rxd8+ {[%emt 0:00:16]} Nxd8 {[%emt 0:00:05]} 20. Rb2 {[%emt 0:04:49]} Rc8 {[%emt 0:02:48]} 21. h4 {[%emt 0:01:39]} Rc1+ {[%emt 0:02:58]} 22. Kh2 {[%emt 0:00:09]} Rc2 {[%emt 0:00:05]} 23. Rxc2 {[%emt 0:00:17]} Bxc2 $14 {[%emt 0:00:05][%mdl 4096] Endgame. KBN-KBN} 24. Nd4 {[%emt 0:00:15]} Bb1 {[%emt 0:00:44]} 25. Bc4 {[%emt 0:05:18]} Nc6 {[%emt 0:13:38]} 26. Nxc6 {[%emt 0:04:03]} bxc6 {[%emt 0:00:09] KB-KB} 27. Kg3 {[%emt 0:00:06]} Kf8 {[%emt 0:05:01]} 28. Kf4 {[%emt 0:06:18]} Bc2 {[%emt 0:00:29]} 29. e4 {[%emt 0:00:50]} c5 {[%emt 0:26:32]} 30. g4 {[%emt 0:02:03]} Bd1 {[%emt 0:01:49]} 31. f3 {[%emt 0:20:56]} Ke7 {[%emt 0:02:21]} 32. Ke3 {[%emt 0:00:18]} (32. Bb3 $5 Be2 $8 33. Ke3 $11) 32... Ba4 {[%emt 0:00:13]} 33. Kd2 {[%emt 0:03:40]} Kf8 {[%emt 0:04:27]} 34. Bb3 {[%emt 0:05:10]} Bb5 {[%emt 0:00:20]} 35. a4 {[%emt 0:00:29]} Bf1 {[%emt 0:07:01]} 36. a5 {[%emt 0:02:55]} Ke7 {[%emt 0:00:03]} 37. Bd1 {[%emt 0:02:48] Be2 is the strong threat.} Bc4 {[%emt 0:03:54]} 38. Be2 {[%emt 0:00:25]} Be6 {[%emt 0:00:03]} 39. Kc3 {[%emt 0:04:45]} Kd6 {[%emt 0:00:16]} 40. f4 {[%emt 0:06:07] aiming for Bf3.} Ke7 {[%emt 0:00:06] [#]} (40... Bc8 $1 $11 {and Black has nothing to worry.}) 41. Kd2 {[%emt 0:33:36]} ({Only move:} 41. Bd1 $1 $18) 41... Kd6 {[%emt 0:33:03]} 42. Ke3 {[%emt 0:00:37]} Bb3 {[%emt 0:00:00]} (42... Bd7 $11) 43. h5 $16 {[%emt 0:00:00][%cal Og4g5] And now g5! would win.} Ke7 {[%emt 0:00:00] [#]} 44. Kd2 {[%emt 0:00:00]} (44. Kd3 $1 $16) 44... Be6 $1 $11 {[%emt 0:00:00] The position is equal.} 45. Bd1 {[%emt 0:00:00]} Bc8 {[%emt 0:00:00]} 46. Ke3 {[%emt 0:00:00]} Bd7 {[%emt 0:00:00]} 47. Kf3 {[%emt 0:00:00]} Be6 {[%emt 0:00:00]} 48. Ke3 {[%emt 0:00:00] Weighted Error Value: White=0.12 (very precise) /Black=0.16 (very precise) .  Mistake:       	White=2     	Black=2      Inaccurate:     	White=1     	Black=3      OK:         	White=15    	Black=17     Best:        	---       	Black=2      Strong:       	---       	Black=1} 1/2-1/2

[Event "45th FIDE Olympiad 2024"]
[Site "Budapest"]
[Date "2024.09.15"]
[Round "5.13"]
[White "Bodin-Hullin, Thomas"]
[Black "Gabriel, Davidson"]
[Result "0-1"]
[ECO "C78"]
[WhiteElo "1855"]
[BlackElo "2043"]
[PlyCount "122"]
[EventDate "2024.09.05"]
[EventType "team-tourn"]
[EventCountry "HUN"]
[WhiteTeam "Senegal"]
[BlackTeam "Haiti"]
[WhiteTeamCountry "SEN"]
[BlackTeamCountry "HAI"]
[TimeControl "40/5400+30:1800+30"]

1. e4 e5 2. Nf3 Nc6 3. Bb5 a6 4. Ba4 Nf6 5. O-O b5 6. Bb3 Bc5 7. c3 d6 8. a4 Bd7 9. d4 Bb6 10. h3 h6 11. Re1 Rb8 12. axb5 axb5 13. Nbd2 exd4 14. cxd4 Bxd4 15. Nxd4 Nxd4 16. Ba2 O-O 17. Bb1 Be6 18. Ra3 Re8 19. f4 c5 20. Nf3 b4 21. Rae3 Nxf3+ 22. Qxf3 Ra8 23. e5 dxe5 24. fxe5 Nh7 25. Rd3 Qe7 26. Rd6 Nf8 27. Be3 Rec8 28. Bxc5 Rxc5 29. Qxa8 Rxe5 30. Rxe5 Qxd6 31. Re1 Qd2 32. Qe4 Bf5 33. Qe8 Be6 34. Rxe6 fxe6 35. Bg6 Qd7 36. Qxd7 Nxd7 37. Kf2 Nc5 38. Ke3 e5 39. g4 Kf8 40. Kd2 Ke7 41. h4 Ke6 42. Ke3 Na4 43. b3 Nc5 44. Bc2 Kd5 45. Bd1 e4 46. Bc2 Ke5 47. Bd1 Ne6 48. Bc2 Nd4 49. Bd1 h5 50. gxh5 Nf5+ 51. Kd2 Nxh4 52. Be2 Kd4 53. Bc4 Ng2 54. Bf7 Nf4 55. Be8 e3+ 56. Kc2 Ke4 57. Bc6+ Kf5 58. Be8 Kg4 59. Kd1 Kf3 60. Bc6+ Kf2 61. Bb5 Nxh5 {0-} 0-1